bitfinex-derivatives/quotes_ETHF0:USTF0_20251008
["timestamp","ask_amount","ask_price","bid_price","bid_amount"]
[1759931221597,0.2793,4455.0,4454.8,0.40393]
[1759931221793,0.28188538,4455.0,4454.9,3.77792056]
[1759931222091,0.99328538,4455.0,4454.9,3.2078]
[1759931222283,5.28188538,4455.0,4454.4,3.2078]
[1759931222487,0.7114,4454.6,4454.5,0.231]
[1759931222891,5.7114,4454.6,4454.5,0.231]
[1759931223089,0.7114,4454.6,4454.5,0.231]
[1759931223389,1.11535,4454.6,4454.5,0.231]
[1759931223591,0.2793,4453.8,4453.5,3.2078]
[1759931223791,0.2793,4453.2,4452.5,3.21046207]
[1759931223989,0.9907,4452.6,4452.5,3.21046207]
[1759931224189,0.2793,4453.2,4452.7,0.40412]
[1759931224388,0.7114,4453.1,4453.0,3.2078]
[1759931225085,0.7114,4453.1,4453.0,3.4388]
[1759931226695,0.7114,4453.1,4453.0,0.231]
[1759931227399,0.7114,4453.1,4453.0,3.4388]
[1759931227895,0.7114,4453.1,4453.0,3.2078]
[1759931228192,0.7114,4453.1,4453.0,0.6351]
[1759931228398,0.2793,4453.2,4453.0,4.18202056]
[1759931228690,0.2793,4453.2,4453.1,0.33912056]
[1759931228899,0.7114,4453.1,4453.0,3.2078]
[1759931229096,0.9907,4452.6,4452.5,0.00266207]
[1759931229289,6.39483,4452.6,4452.5,0.00266207]
[1759931229491,6.39483,4452.6,4452.5,0.23366207]
[1759931229685,5.9907,4452.6,4452.5,0.23366207]
[1759931229889,0.9907,4452.6,4452.5,0.23366207]
[1759931230291,0.9907,4452.6,4452.5,0.00266207]
[1759931230491,0.9907,4452.6,4452.5,0.23366207]
[1759931231296,5.9907,4452.6,4452.5,0.00266207]
[1759931231497,5.9907,4452.6,4452.5,0.23366207]
[1759931232192,5.9907,4452.6,4452.5,0.00266207]
[1759931232392,0.7114,4451.4,4451.1,0.40426]
[1759931232693,0.9907,4451.0,4450.7,3.2078]
[1759931232892,0.7114,4450.9,4450.8,0.231]
[1759931233288,0.71383106,4450.9,4450.8,0.23299644]
[1759931233895,0.71383106,4450.9,4450.8,41.03299644]
[1759931234099,0.00243106,4450.9,4450.8,41.03299644]
[1759931235193,0.00243106,4450.9,4450.8,46.03299644]
[1759931235790,1.06e-06,4450.9,4450.8,46.03299644]
[1759931235990,1.06e-06,4450.9,4450.8,76.07399644]
[1759931236395,1.06e-06,4450.9,4450.8,40.80199644]
[1759931236596,1.06e-06,4450.9,4450.8,76.07399644]
[1759931236990,1.06e-06,4450.9,4450.8,40.80199644]
[1759931237195,1.06e-06,4450.9,4450.8,41.03299644]
[1759931237903,1.06e-06,4450.9,4450.8,0.00199644]
[1759931238098,5.00000106,4450.9,4450.8,0.00199644]
[1759931238296,5.00000106,4450.9,4450.8,0.23299644]
[1759931238602,1.06e-06,4450.9,4450.8,0.23299644]
[1759931238901,1.06e-06,4450.9,4450.8,3.44079644]
[1759931239299,1.06e-06,4450.9,4450.8,3.20979644]
[1759931239609,1.06e-06,4450.9,4450.8,8.44079644]
[1759931240303,1.06e-06,4450.9,4450.8,3.20979644]
[1759931240496,1.06e-06,4450.9,4450.8,3.44079644]
[1759931241099,1.06e-06,4450.9,4450.8,3.20979644]
[1759931241301,1.06e-06,4450.9,4450.8,3.44079644]
[1759931241500,1.06e-06,4450.9,4450.8,44.24079644]
[1759931241702,1.06e-06,4450.9,4450.8,44.00979644]
[1759931241908,1.06e-06,4450.9,4450.8,44.24079644]
[1759931242902,1.06e-06,4450.9,4450.8,49.24079644]
[1759931243202,3.2078,4453.0,4451.0,2.42568]
[1759931243408,0.40412,4452.7,4452.0,3.2078]
[1759931243603,0.40412,4452.7,4451.6,0.33912056]
[1759931243604,0.40417,4452.3,4451.6,0.33912056]
[1759931243906,0.40412,4452.8,4451.9,3.2078]
[1759931244093,3.2078,4453.0,4452.0,0.231]
[1759931244094,0.40413,4452.7,4452.0,0.231]
[1759931244302,0.00159548,4452.7,4451.4,3.2078]
[1759931244502,0.00159548,4452.7,4451.9,3.2078]
[1759931244800,0.40417,4452.2,4452.0,0.231]
[1759931245000,0.40415,4452.4,4452.0,0.231]
[1759931245203,0.00159548,4452.7,4452.0,3.84298]
[1759931245400,0.40571548,4452.7,4452.0,3.84298]
[1759931245596,0.00159548,4452.7,4452.5,0.40414]
[1759931245906,0.40416,4452.4,4452.0,3.2078]
[1759931246104,0.40414,4452.6,4452.1,0.231]
[1759931246404,0.00159548,4452.7,4452.5,3.61193]
[1759931246608,0.00159548,4452.7,4452.6,0.231]
[1759931247005,0.00159548,4452.7,4452.5,3.2078]
[1759931247195,0.00159548,4452.7,4452.6,0.231]
[1759931248507,0.00159548,4452.7,4452.5,3.61194]
[1759931248704,0.00159548,4452.7,4452.5,3.2078]
[1759931248901,0.00159548,4452.7,4452.6,0.231]
[1759931249298,0.40571548,4452.7,4452.6,0.231]
[1759931249504,0.00159548,4452.7,4452.6,0.231]
[1759931250799,3.2078,4455.3,4452.6,0.57012056]
[1759931251003,3.2078,4455.3,4454.6,0.40394]
[1759931251211,3.2078,4455.3,4454.7,0.231]
[1759931251212,0.40392,4454.9,4454.7,0.231]
[1759931251403,0.4039,4455.2,4454.3,3.2078]
[1759931251609,0.40397,4454.5,4454.4,0.231]
[1759931251806,0.40684682,4454.5,4454.4,0.23308695]
[1759931252006,5.40684682,4454.5,4454.4,0.00208695]
[1759931252204,5.40684682,4454.5,4454.4,0.23308695]
[1759931252411,0.00287682,4454.5,4454.4,0.00208695]
[1759931252609,0.00287682,4454.5,4454.4,0.23308695]
[1759931253008,0.00287682,4454.5,4454.4,41.03308695]
[1759931253719,0.00287682,4454.5,4454.4,41.37220751]
[1759931255116,0.00287682,4454.5,4454.4,46.37220751]
[1759931255814,3.2078,4456.3,4455.0,1.00979]
[1759931256019,3.2078,4456.3,4455.6,0.33912056]
[1759931256210,3.2078,4456.3,4455.7,0.231]
[1759931256612,3.2078,4456.3,4455.8,0.40384]
[1759931256914,3.21064984,4456.3,4455.9,0.231]
[1759931257316,0.00284984,4456.3,4456.1,0.40381]
[1759931257514,0.00284984,4456.3,4456.2,0.231]
[1759931257717,0.00284984,4456.3,4456.2,0.57012056]
[1759931258818,0.00284984,4456.3,4456.2,46.37012056]
[1759931260017,3.2078,4457.8,4457.2,0.40371]
[1759931260320,0.022,4457.9,4457.6,0.40368]
[1759931260518,0.022,4457.9,4457.7,0.231]
[1759931261021,0.02435015,4457.9,4457.7,0.23267773]
[1759931262320,0.02435015,4457.9,4457.8,8.54305921]
[1759931262515,0.02435015,4457.9,4457.8,8.20393865]
[1759931262716,0.70355015,4457.9,4457.8,8.20393865]
[1759931263315,0.70355015,4457.9,4457.8,54.00393865]
[1759931264316,0.2646,4459.0,4458.4,0.33912056]
[1759931264517,0.2646,4459.0,4458.9,0.33912056]
[1759931264727,0.2646,4459.0,4458.9,0.57012056]
[1759931264925,0.2646,4459.0,4458.9,0.97368056]
[1759931265117,0.2646,4459.0,4458.9,0.57012056]
[1759931265423,0.26624427,4459.0,4458.9,0.57012056]
[1759931265818,0.26624427,4459.0,4458.9,41.37012056]
[1759931266321,0.94544427,4459.0,4458.9,41.37012056]
[1759931266522,0.94544427,4459.0,4458.9,40.8]
[1759931266722,0.94544427,4459.0,4458.9,41.031]
[1759931267121,0.94544427,4459.0,4458.9,41.37012056]
[1759931267321,0.94544427,4459.0,4458.9,41.031]
[1759931268119,0.94544427,4459.0,4458.9,41.37012056]
[1759931268421,0.94544427,4459.0,4458.9,41.13912056]
[1759931268733,0.94544427,4459.0,4458.9,41.37012056]
[1759931269317,0.94544427,4459.0,4458.9,41.13912056]
[1759931269622,0.6792,4457.9,4457.5,3.2078]
[1759931269827,1.08285,4457.9,4457.8,0.231]
[1759931270125,1.08285,4457.9,4457.5,3.2078]
[1759931270319,1.08285,4457.9,4457.8,0.231]
[1759931270716,0.6792,4457.9,4457.8,0.231]
[1759931270919,0.6792,4457.9,4457.5,3.2078]
[1759931271120,0.6792,4457.9,4457.8,0.231]
[1759931271321,1.08285,4457.9,4457.8,0.231]
[1759931271729,0.6792,4457.9,4457.8,0.231]
[1759931273124,0.40366,4457.8,4457.5,3.2078]
[1759931273325,1.08286,4457.8,4457.7,0.23267773]
[1759931273530,0.6792,4457.8,4457.7,0.23267773]
[1759931273924,0.4037,4457.4,4456.5,3.2078]
[1759931274121,3.2078,4457.2,4456.7,0.6588]
[1759931274326,0.6792,4457.8,4456.6,0.231]
[1759931274327,0.6792,4457.8,4457.1,0.33912056]
[1759931274530,1.00897,4458.7,4458.0,0.6588]
[1759931274531,3.2078,4458.7,4458.0,0.6588]
[1759931274829,3.2078,4458.7,4458.5,0.33912056]
[1759931275130,3.2078,4458.7,4458.0,1.06458432]
[1759931275131,3.2078,4458.7,4458.6,0.57012056]
[1759931275331,3.2078,4458.7,4458.6,1.22892056]
[1759931275518,3.2078,4458.7,4458.6,0.8898]
[1759931275720,3.2078,4458.7,4458.6,0.231]
[1759931276029,0.40358,4458.7,4458.6,0.231]
[1759931276324,3.20944427,4459.0,4458.6,0.231]
[1759931276531,0.6792,4458.9,4458.6,0.231]
[1759931276929,0.6792,4458.9,4458.6,0.57012056]
[1759931277429,0.00164427,4459.0,4458.9,0.6588]
[1759931277633,0.00164427,4459.0,4458.9,1.22892056]
[1759931277836,0.00164427,4459.0,4458.5,3.2078]
[1759931278025,1.00903,4458.4,4456.7,0.231]
[1759931278328,1.0092,4457.6,4456.7,0.231]
[1759931278634,1.00914,4457.9,4456.8,0.6588]
[1759931278635,3.61153,4457.1,4456.8,0.6588]
[1759931278933,3.2078,4457.1,4456.7,0.231]
[1759931279130,3.2078,4457.1,4456.7,0.23322972]
[1759931279528,3.2078,4457.6,4457.0,0.2608]
[1759931279832,0.40375,4456.8,4456.7,2.972e-05]
[1759931280126,3.2078,4457.6,4456.8,0.6588]
[1759931280327,3.2078,4457.6,4456.9,0.6588]
[1759931280537,3.2078,4457.6,4457.0,0.2608]
[1759931280722,3.2078,4457.6,4457.2,0.6588]
[1759931280922,3.2078,4457.6,4457.0,0.2608]
[1759931281123,3.2078,4457.6,4457.0,0.9196]
[1759931281338,0.40371,4457.3,4457.1,0.231]
[1759931281934,3.2078,4457.6,4457.1,0.231]
[1759931281935,0.40369,4457.5,4457.1,0.231]
[1759931282334,3.2078,4457.6,4457.1,0.231]
[1759931282335,0.40371,4457.3,4457.1,0.231]
[1759931282538,0.40369,4457.5,4457.2,0.231]
[1759931282933,0.40372,4457.2,4456.8,41.4588]
[1759931283338,0.40373,4457.1,4456.8,41.4588]
[1759931283538,0.40371,4457.3,4456.8,0.6588]
[1759931283746,3.2078,4457.6,4456.9,0.231]
[1759931283939,0.40369,4457.5,4456.8,0.6588]
[1759931284233,0.40371,4457.3,4456.8,0.6588]
[1759931284440,0.40371,4457.3,4456.9,0.8898]
[1759931284634,0.40372,4457.2,4456.9,0.8898]
[1759931284836,0.4037,4457.4,4457.0,0.6588]
[1759931285029,0.4037,4457.4,4457.1,0.6588]
[1759931285233,3.2078,4457.6,4457.5,0.2608]
[1759931285541,3.2078,4457.6,4457.5,5.49129226]
[1759931286136,3.2078,4457.6,4457.5,1.1506]
[1759931286341,3.2078,4457.6,4456.7,40.80002972]
[1759931286532,0.40375,4456.9,4456.7,2.972e-05]
[1759931286737,0.40375,4456.9,4456.8,0.231]
[1759931287028,0.40375,4456.8,4456.7,2.972e-05]
[1759931287233,0.40375,4456.8,4455.6,35.001]
[1759931287234,0.4038,4456.3,4455.6,35.001]
[1759931287537,4.21715,4457.0,4455.7,0.231]
[1759931287538,3.2078,4456.4,4455.7,0.231]
[1759931287740,0.40381,4456.2,4455.8,0.231]
[1759931287936,3.2078,4456.4,4455.8,0.231]
[1759931287937,0.40382,4456.1,4455.8,0.231]
[1759931288240,0.40383,4456.0,4455.8,0.23325768]
[1759931288540,3.2078,4456.4,4455.8,0.23325768]
[1759931289139,0.40381,4456.2,4455.8,0.23325768]
[1759931289337,0.40383,4456.0,4455.8,0.00225768]
[1759931289533,4.21729,4456.4,4455.0,4.1379]
[1759931289534,0.40387,4455.6,4455.0,4.1379]
[1759931289733,3.2078,4455.9,4455.2,0.6693]
[1759931290037,1.00927,4457.3,4455.5,0.2785]
[1759931290038,3.2078,4456.4,4455.5,0.2785]
[1759931290232,3.2078,4456.4,4455.6,0.9003]
[1759931290432,3.2078,4456.4,4456.1,0.6693]
[1759931290636,0.00251219,4456.4,4456.3,0.6693]
[1759931291034,0.00251219,4456.4,4456.1,0.00284622]
[1759931291336,0.40383,4456.0,4455.5,40.8]
[1759931291536,0.40383,4456.0,4455.2,0.6693]
[1759931291537,3.2078,4455.9,4455.2,0.6693]
[1759931291728,3.2078,4455.9,4455.6,0.231]
[1759931291934,3.21031219,4456.4,4455.6,0.231]
[1759931292240,3.61410219,4456.4,4455.7,0.6693]
[1759931292433,3.61410219,4456.4,4455.7,1.0748227]
[1759931292434,3.21031219,4456.4,4455.7,1.0748227]
[1759931292633,0.40381,4456.2,4455.7,0.6709727]
[1759931293037,0.40383,4456.0,4455.7,0.6709727]
[1759931293244,3.21031219,4456.4,4455.8,0.231]
[1759931293432,6.0095,4456.3,4454.8,3.2078]
[1759931293638,6.0095,4456.3,4454.5,0.9301]
[1759931293639,3.2078,4455.3,4454.9,0.231]
[1759931293943,0.4039,4455.2,4455.0,0.231]
[1759931294136,3.2078,4455.3,4455.0,0.231]
[1759931294333,3.2078,4455.3,4455.1,0.6693]
[1759931294536,3.2078,4455.3,4455.2,0.6693]
[1759931294735,3.2078,4455.9,4455.2,0.6693]
[1759931295236,3.2078,4455.9,4455.8,0.6693]
[1759931295435,3.2078,4455.9,4455.8,0.9003]
[1759931295832,3.21031219,4456.4,4455.8,4.57169226]
[1759931296037,0.00251219,4456.4,4456.3,5.00999226]
[1759931296241,0.00251219,4456.4,4456.3,5.24099226]
[1759931296436,0.00251219,4456.4,4456.3,10.24099226]
[1759931296642,3.2078,4456.9,4456.8,1.07305]
[1759931296830,3.2078,4456.9,4456.8,5.64474226]
[1759931297343,2.71940318,4456.9,4456.8,5.64474226]
[1759931297643,3.2078,4458.6,4457.7,0.40366]
[1759931297838,3.2078,4458.6,4457.8,0.231]
[1759931298038,0.40362,4458.3,4457.8,0.231]
[1759931298544,3.20995943,4458.6,4457.8,0.231]
[1759931298841,3.20995943,4458.6,4457.0,4.61919226]
[1759931298842,3.2078,4457.9,4457.1,0.40372]
[1759931299043,3.2078,4457.9,4457.3,0.6693]
[1759931299342,3.61141,4458.4,4457.5,0.68218]
[1759931299545,3.2078,4458.4,4457.6,0.231]
[1759931300239,0.00215943,4458.6,4458.0,4.61919226]
[1759931300442,0.00215943,4458.6,4458.5,5.28849226]
[1759931300633,0.00215943,4458.6,4458.5,5.52160887]
[1759931301239,0.00215943,4458.6,4458.5,1.18091661]
[1759931301440,0.00215943,4458.6,4458.5,41.98091661]
[1759931302142,0.00215943,4458.6,4458.5,1.18091661]
[1759931302537,0.00215943,4458.6,4458.5,41.98091661]
[1759931302742,0.00215943,4458.6,4458.5,41.03311661]
[1759931302937,0.00215943,4458.6,4458.5,0.00211661]
[1759931303144,0.00215943,4458.6,4458.5,0.23311661]
[1759931303339,0.00215943,4458.6,4458.5,1.18091661]
[1759931304849,3.2078,4459.5,4459.4,0.6693]
[1759931305139,3.2078,4459.5,4459.4,0.9003]
[1759931305741,3.2103864,4459.5,4459.4,0.9003]
[1759931306252,3.2103864,4459.5,4459.4,0.231]
[1759931306448,3.2103864,4459.5,4459.4,1.30382]
[1759931306743,3.2103864,4459.5,4459.4,0.9003]
[1759931308447,3.2078,4460.1,4460.0,0.40346]
[1759931308647,3.2078,4460.1,4460.0,5.92295226]
[1759931308853,3.2078,4460.1,4460.0,1.1788]
[1759931309443,3.20939936,4460.1,4460.0,1.1788]
[1759931309641,3.20939936,4460.1,4459.5,0.2785]
[1759931309837,3.20939936,4460.1,4459.6,0.63449]
[1759931310043,3.20939936,4460.1,4459.9,0.6693]
[1759931310248,3.20939936,4460.1,4460.0,0.9003]
[1759931311046,3.20939936,4460.1,4460.0,0.231]
[1759931311253,0.40348,4459.8,4459.2,40.8]
[1759931311446,0.40347,4459.9,4459.3,0.9003]
[1759931311844,3.20939936,4460.1,4459.4,0.40351]
[1759931312044,3.20939936,4460.1,4459.6,1.07279]
[1759931312250,3.20939936,4460.1,4460.0,0.9478]
[1759931312440,3.20939936,4460.1,4460.0,1.1788]
[1759931312751,3.20939936,4460.1,4459.5,8.89979226]
[1759931312944,3.20939936,4460.1,4459.6,0.63449]
[1759931313144,0.00159936,4460.1,4459.6,0.231]
[1759931313346,0.00159936,4460.1,4460.0,5.28849226]
[1759931313542,0.00159936,4460.1,4460.0,5.51949226]
[1759931315851,3.2078,4461.1,4460.0,14.06665226]
[1759931316050,3.2078,4461.1,4461.0,4.34069226]
[1759931316254,3.2078,4461.1,4461.0,5.51949226]
[1759931316549,3.2078,4461.6,4461.0,5.51949226]
[1759931316755,3.2078,4461.6,4461.3,0.40334]
[1759931317051,3.21048917,4461.6,4461.5,5.28849226]
[1759931318246,3.21048917,4461.6,4461.5,1.1788]
[1759931318752,3.21048917,4461.6,4461.0,0.2785]
[1759931318944,3.21048917,4461.6,4460.5,7.82699226]
[1759931318945,1.00835,4461.4,4460.5,0.2785]
[1759931319249,8.21048917,4461.6,4460.7,0.6608]
[1759931319250,0.40337,4461.0,4460.7,0.6608]
[1759931319456,3.2078,4461.5,4460.6,5.19449226]
[1759931319754,3.2078,4461.5,4461.3,0.6608]
[1759931319946,3.2078,4461.5,4461.2,4.34069226]
[1759931319947,3.2078,4461.5,4461.4,0.8908]
[1759931320349,3.2078,4462.6,4462.5,0.944]
[1759931320549,3.2078,4462.6,4462.0,0.2832]
[1759931320755,0.40331,4461.7,4461.0,0.2832]
[1759931321048,3.2078,4462.1,4461.1,0.23]
[1759931321049,3.61113,4461.5,4461.1,0.23]
[1759931321350,3.2102814,4461.5,4461.1,0.23191948]
[1759931321556,3.2102814,4461.5,4461.1,0.00191948]
[1759931321754,0.40335,4461.3,4461.2,0.23]
[1759931321955,3.6136114,4461.5,4461.2,0.23]
[1759931322248,3.2102814,4461.5,4461.3,0.23]
[1759931322455,3.2102814,4461.5,4461.4,0.7014]
[1759931322650,3.2102814,4461.5,4461.4,1.10473]
[1759931322844,0.0024814,4461.5,4461.4,1.10473]
[1759931323448,0.0024814,4461.5,4461.4,1.33473]
[1759931323649,0.0024814,4461.5,4461.4,0.9314]
[1759931324051,3.2078,4462.2,4461.4,0.9314]
[1759931324052,3.2078,4462.2,4462.1,1.10467]
[1759931324354,3.2078,4462.2,4462.1,5.67536226]
[1759931324948,3.21038545,4462.2,4462.1,5.27209226]
[1759931325149,3.2078,4462.7,4462.6,0.40323]
[1759931325348,3.2078,4462.7,4462.6,5.27209226]
[1759931325952,3.2078,4463.3,4462.7,1.10462]
[1759931326155,0.02469841,4462.9,4462.8,0.7014]
[1759931326854,0.02469841,4462.9,4462.8,0.9314]
[1759931327552,0.02469841,4462.9,4462.8,1.33461]
[1759931327951,0.02469841,4462.9,4462.8,0.9314]
[1759931329257,0.02469841,4462.9,4462.8,0.7014]
[1759931329554,0.02469841,4462.9,4462.8,0.9314]
[1759931329754,0.02469841,4462.9,4462.8,0.7014]
[1759931330058,0.02469841,4462.9,4462.8,0.9314]
[1759931330446,0.02469841,4462.9,4462.5,0.259]
[1759931330648,0.02469841,4462.9,4462.6,0.9314]
[1759931330853,0.02469841,4462.9,4462.8,0.7014]
[1759931331451,0.02469841,4462.9,4462.7,0.23]
[1759931331650,3.61101,4462.8,4462.1,5.44536226]
[1759931331853,3.61101,4462.8,4461.6,3.2078]
[1759931331854,3.2078,4462.8,4461.6,7.95180226]
[1759931332056,0.4033,4461.8,4461.5,0.23]
[1759931332256,3.2078,4462.0,4461.7,4.74399226]
[1759931332554,3.2078,4462.0,4461.7,4.34069226]
[1759931332863,0.4033,4461.8,4461.2,4.34069226]
[1759931333051,0.40333,4461.5,4461.3,0.23]
[1759931333258,0.40331,4461.7,4461.3,0.23]
[1759931333453,3.2078,4462.0,4461.3,0.23]
[1759931333657,0.40335,4461.3,4461.1,0.00191948]
[1759931333854,0.40335,4461.3,4461.2,0.23]
[1759931334156,3.2078,4461.5,4461.2,0.23]
[1759931334552,3.2078,4461.5,4461.3,0.7014]
[1759931334753,3.2078,4461.5,4461.2,0.23]
[1759931334961,3.2078,4461.5,4461.3,0.7014]
[1759931335155,3.2078,4461.5,4461.2,0.23]
[1759931335361,3.61113,4461.5,4461.3,0.23]
[1759931336459,3.2078,4461.5,4461.3,0.23]
[1759931336655,3.61113,4461.5,4461.3,0.23]
[1759931337158,0.40335,4461.2,4461.1,0.00191948]
[1759931337558,0.40339,4460.8,4460.4,0.7014]
[1759931337862,3.2078,4460.9,4460.5,0.63341]
[1759931338061,3.2078,4460.9,4460.5,0.23]
[1759931338455,3.2078,4460.9,4460.5,0.63598938]
[1759931338764,3.2078,4461.4,4460.7,1.1048]
[1759931338952,3.2078,4461.4,4460.9,0.40337]
[1759931339157,3.2078,4461.4,4460.6,4.34069226]
[1759931339158,3.2078,4461.9,4461.1,0.40336]
[1759931339461,0.40332,4461.6,4461.0,1.59377]
[1759931339661,3.2078,4461.4,4461.0,0.489]
[1759931340059,3.2078,4461.4,4460.5,0.00257938]
[1759931340263,1.00821,4462.0,4460.6,0.23]
[1759931340264,3.61118,4460.9,4460.6,0.23]
[1759931340757,3.2078,4461.6,4461.1,0.7014]
[1759931340961,1.00805,4462.7,4461.3,0.7014]
[1759931340962,0.40328,4462.0,4461.3,0.7014]
[1759931341163,3.2078,4462.1,4461.3,0.7014]
[1759931341558,3.2078,4462.1,4462.0,0.9604]
[1759931341756,3.2078,4462.1,4462.0,1.1904]
[1759931342364,3.2078,4462.6,4462.5,0.9604]
[1759931342667,0.02469841,4462.9,4462.5,0.9604]
[1759931342668,0.02469841,4462.9,4462.8,0.7014]
[1759931343861,0.02469841,4462.9,4462.8,5.7014]
[1759931344858,0.02469841,4462.9,4462.8,46.5014]
[1759931345059,0.02469841,4462.9,4462.8,46.7314]
[1759931345262,3.2078,4463.6,4462.8,46.7314]
[1759931345263,3.2078,4463.6,4463.5,0.66214]
[1759931345467,1.00747,4465.3,4463.6,0.7014]
[1759931345468,3.2078,4464.6,4463.6,0.7014]
[1759931345770,3.2078,4464.6,4464.5,0.9604]
[1759931346071,3.2078,4464.6,4464.5,41.03]
[1759931346364,3.21046549,4464.6,4464.5,41.03192034]
[1759931346662,3.21046549,4464.6,4464.5,1.19232034]
[1759931347058,3.21046549,4464.6,4464.5,0.96232034]
[1759931347253,3.21046549,4464.6,4464.5,1.19232034]
[1759931347460,0.00266549,4464.6,4464.5,1.19232034]
[1759931347655,0.00266549,4464.6,4464.5,0.96232034]
[1759931347863,3.21046549,4464.6,4464.5,0.00192034]
[1759931348062,3.21046549,4464.6,4464.5,0.93332034]
[1759931348266,3.21046549,4464.6,4464.5,1.19472034]
[1759931348876,0.00266549,4464.6,4464.5,1.19472034]
[1759931349357,0.00266549,4464.6,4464.5,36.15572034]
[1759931349965,0.00266549,4464.6,4464.5,0.96472034]
[1759931350266,0.00266549,4464.6,4464.5,36.15572034]
[1759931350568,0.00266549,4464.6,4464.5,1.19472034]
[1759931351362,3.61351549,4464.6,4464.5,41.03192034]
[1759931351563,3.61351549,4464.6,4464.5,0.00192034]
[1759931351767,3.61351549,4464.6,4464.5,0.23192034]
[1759931352269,3.61351549,4464.6,4463.5,0.9616]
[1759931352270,1.00767,4464.4,4463.5,0.9616]
[1759931352457,0.40311,4463.9,4463.6,0.23]
[1759931352662,0.40314,4463.6,4463.4,40.8]
[1759931352863,0.40314,4463.6,4463.5,0.9326]
[1759931353059,0.40312,4463.8,4463.6,0.7026]
[1759931353265,0.40312,4463.8,4463.6,0.00211983]
[1759931353659,0.40312,4463.8,4462.4,4.97841147]
[1759931353660,1.00782,4463.8,4463.7,0.23]
[1759931353865,3.2078,4464.0,4463.6,0.23]
[1759931354171,3.2078,4464.0,4462.5,0.66463]
[1759931354172,1.00781,4463.8,4463.5,0.23]
[1759931354371,0.40318,4463.1,4463.0,0.964]
[1759931354560,3.2078,4463.1,4463.0,1.19563125]
[1759931354873,3.2078,4464.1,4464.0,0.964]
[1759931355074,3.2078,4464.1,4464.0,1.194]
[1759931355472,0.00266549,4464.6,4464.0,1.194]
[1759931355473,3.61351549,4464.6,4464.5,0.964]
[1759931355765,0.00266549,4464.6,4464.5,0.964]
[1759931355972,3.21046549,4464.6,4464.5,1.194]
[1759931356276,3.21046549,4464.6,4464.0,0.2614]
[1759931356568,3.61089,4464.1,4464.0,0.2614]
[1759931356775,0.40314,4463.6,4463.5,0.964]
[1759931357075,3.2078,4463.6,4463.5,1.194]
[1759931357572,3.21046549,4464.6,4464.5,0.964]
[1759931357873,3.21046549,4464.6,4464.5,1.194]
[1759931358067,3.21046549,4464.6,4464.5,0.964]
[1759931358273,0.40306,4464.5,4464.1,0.7026]
[1759931358470,3.21046549,4464.6,4464.5,0.2614]
[1759931358667,3.21046549,4464.6,4464.5,0.964]
[1759931359372,0.00266549,4464.6,4464.5,0.964]
[1759931359766,0.00266549,4464.6,4464.5,5.94241147]
[1759931360463,0.00266549,4464.6,4464.5,6.17241147]
[1759931361069,0.00266549,4464.6,4464.5,11.17241147]
[1759931361273,3.2078,4465.6,4465.5,0.964]
[1759931361469,3.2078,4465.6,4465.5,1.194]
[1759931362277,0.00159263,4465.6,4465.5,1.194]
[1759931363169,3.20939263,4465.6,4465.5,0.2614]
[1759931363373,0.403,4465.2,4465.0,0.2614]
[1759931363572,8.20939263,4465.6,4465.0,0.964]
[1759931363573,3.2078,4465.1,4465.0,0.964]
[1759931364171,3.2078,4465.1,4465.0,1.194]
[1759931364579,0.00159263,4465.6,4465.0,1.194]
[1759931364580,3.20939263,4465.6,4465.5,0.964]
[1759931365173,3.20939263,4465.6,4465.5,1.194]
[1759931365373,3.20939263,4465.6,4465.5,0.964]
[1759931365574,8.20939263,4465.6,4465.5,1.194]
[1759931365977,8.20939263,4465.6,4465.5,0.964]
[1759931366172,8.20939263,4465.6,4465.5,1.194]
[1759931367578,3.20939263,4465.6,4465.5,1.194]
[1759931368073,3.20939263,4465.6,4465.5,0.964]
[1759931368279,3.20939263,4465.6,4465.5,1.194]
[1759931368669,3.20939263,4465.6,4465.5,0.964]
[1759931368976,3.20939263,4465.6,4465.5,1.194]
[1759931369378,3.20939263,4465.6,4465.5,0.964]
[1759931369683,0.403,4465.1,4465.0,0.964]
[1759931369875,3.6108,4465.1,4465.0,0.2614]
[1759931370275,0.40305,4464.6,4464.5,0.964]
[1759931370487,0.40305,4464.6,4464.5,1.194]
[1759931370779,0.40309,4464.1,4464.0,0.2614]
[1759931370981,3.61089,4464.1,4464.0,0.4914]
[1759931371180,3.61089,4464.1,4464.0,1.194]
[1759931371377,3.2078,4464.1,4464.0,1.194]
[1759931371580,3.2078,4464.6,4464.0,0.4914]
[1759931371775,3.2078,4464.6,4464.5,0.964]
[1759931372082,3.2078,4464.6,4464.5,1.194]
[1759931373278,3.2078,4464.6,4464.0,1.86599847]
[1759931373482,3.2078,4464.1,4463.5,0.964]
[1759931373672,0.40313,4463.7,4463.6,0.9326]
[1759931373879,3.2078,4463.7,4463.6,0.9326]
[1759931374384,0.40311,4463.9,4463.6,0.23]
[1759931374583,3.2078,4464.3,4464.1,0.7026]
[1759931374879,3.2078,4464.3,4464.2,0.23]
[1759931374880,3.61087,4464.3,4464.2,0.23]
[1759931375184,3.61087,4464.3,4464.2,0.7026]
[1759931375381,3.61087,4464.3,4464.2,0.9326]
[1759931376984,0.40309,4464.1,4464.0,0.2614]
[1759931377183,3.61088,4464.3,4464.0,0.4914]
[1759931377388,3.2078,4464.3,4464.1,0.7026]
[1759931377588,3.2078,4464.3,4464.2,0.7026]
[1759931377792,3.2078,4464.3,4464.1,0.40309]
[1759931377793,0.403,4465.2,4465.0,0.2614]
[1759931378288,3.2078,4465.3,4464.6,0.7026]
[1759931378289,0.40303,4464.8,4464.6,0.7026]
[1759931378493,3.2078,4464.7,4464.6,0.6642]
[1759931378794,3.2078,4464.7,4464.6,0.8942]
[1759931379289,0.40305,4464.6,4464.5,0.2614]
[1759931379488,0.40305,4464.6,4464.5,1.1556]